[Event "FIDE U16 Olympiad_boards_1-80"]
[Site "Eindhoven, Netherlands"]
[Date "2023.08.14"]
[Round "3.79"]
[White "Zecha, Oscar"]
[Black "Fan, Chloe"]
[Result "0-1"]
[TimeControl "2700+10"]
[WhiteElo "1867"]
[BlackElo "1787"]

1. d4 {[%clk 00:45:17]} {[%emt 00:00:02]} d5 {[%clk 00:45:19]} {[%emt
00:00:02]} 2. c4 {[%clk 00:45:26]} {[%emt 00:00:01]} c6 {[%clk 00:45:28]}
{[%emt 00:00:01]} 3. Nf3 {[%clk 00:45:35]} {[%emt 00:00:01]} Nf6 {[%clk
00:45:37]} {[%emt 00:00:01]} 4. e3 {[%clk 00:45:44]} a6 {[%clk 00:45:46]}
{[%emt 00:00:01]} 5. Qb3 {[%clk 00:45:00]} {[%emt 00:00:54]} e6 {[%clk
00:43:07]} {[%emt 00:02:49]} 6. Nc3 {[%clk 00:41:59]} {[%emt 00:03:11]} dxc4
{[%clk 00:41:46]} {[%emt 00:01:31]} 7. Bxc4 {[%clk 00:41:43]} {[%emt 00:00:25]}
b5 {[%clk 00:41:30]} {[%emt 00:00:27]} 8. Be2 {[%clk 00:40:55]} {[%emt
00:00:57]} Nbd7 {[%clk 00:33:52]} {[%emt 00:07:49]} 9. O-O {[%clk 00:39:52]}
{[%emt 00:01:13]} Bb7 {[%clk 00:33:44]} {[%emt 00:00:18]} 10. a4 {[%clk
00:37:39]} {[%emt 00:02:23]} Be7 {[%clk 00:31:36]} {[%emt 00:02:18]} 11. Rd1
{[%clk 00:37:06]} {[%emt 00:00:42]} O-O {[%clk 00:31:15]} {[%emt 00:00:31]} 12.
Bd2 {[%clk 00:33:28]} {[%emt 00:03:49]} Qb6 {[%clk 00:29:59]} {[%emt 00:01:26]}
13. Rdc1 {[%clk 00:28:46]} {[%emt 00:04:52]} b4 {[%clk 00:27:44]} {[%emt
00:02:25]} 14. a5 {[%clk 00:27:30]} {[%emt 00:01:26]} Qc7 {[%clk 00:25:22]}
{[%emt 00:02:32]} 15. Na4 {[%clk 00:27:29]} {[%emt 00:00:11]} Qxa5 {[%clk
00:23:02]} {[%emt 00:02:30]} 16. Nc5 {[%clk 00:26:08]} {[%emt 00:01:29]} Nxc5
{[%clk 00:22:37]} {[%emt 00:00:37]} 17. dxc5 {[%clk 00:26:16]} {[%emt
00:00:02]} Qc7 {[%clk 00:22:20]} {[%emt 00:00:26]} 18. Bxb4 {[%clk 00:25:10]}
{[%emt 00:01:16]} Rfb8 {[%clk 00:17:19]} {[%emt 00:05:12]} 19. Ba5 {[%clk
00:22:36]} {[%emt 00:02:44]} Bc8 {[%clk 00:16:27]} {[%emt 00:01:02]} 20. Qa4
{[%clk 00:21:25]} {[%emt 00:01:21]} Qb7 {[%clk 00:14:06]} {[%emt 00:02:30]} 21.
Ne5 {[%clk 00:17:31]} {[%emt 00:04:05]} Bd7 {[%clk 00:13:07]} {[%emt 00:01:09]}
22. Nxd7 {[%clk 00:15:36]} {[%emt 00:02:05]} Qxd7 {[%clk 00:11:55]} {[%emt
00:01:22]} 23. Rd1 {[%clk 00:14:54]} {[%emt 00:00:52]} Qe8 {[%clk 00:11:35]}
{[%emt 00:00:30]} 24. Qc2 {[%clk 00:11:14]} {[%emt 00:03:50]} Qc8 {[%clk
00:06:43]} {[%emt 00:05:01]} 25. Ra4 {[%clk 00:10:15]} {[%emt 00:01:10]} Nd5
{[%clk 00:06:07]} {[%emt 00:00:46]} 26. e4 {[%clk 00:09:26]} {[%emt 00:00:58]}
Nf4 {[%clk 00:05:09]} {[%emt 00:01:09]} 27. Bf1 {[%clk 00:09:19]} {[%emt
00:00:17]} e5 {[%clk 00:04:02]} {[%emt 00:01:17]} 28. Bc3 {[%clk 00:07:59]}
{[%emt 00:01:29]} Qg4 {[%clk 00:02:29]} {[%emt 00:01:43]} 29. Bxe5 {[%clk
00:06:16]} {[%emt 00:01:54]} Nh3+ {[%clk 00:02:35]} {[%emt 00:00:05]} 30. Kh1
{[%clk 00:06:22]} {[%emt 00:00:02]} Qxd1 {[%clk 00:02:40]} {[%emt 00:00:05]} 31.
Qc4 {[%clk 00:03:08]} {[%emt 00:03:25]} Nxf2+ {[%clk 00:01:51]} {[%emt
00:00:59]} 32. Kg1 {[%clk 00:03:17]} Rd8 {[%clk 00:01:27]} {[%emt 00:00:34]} 33.
Kxf2 {[%clk 00:02:13]} {[%emt 00:01:13]} Bxc5+ {[%clk 00:01:36]} {[%emt
00:00:02]} 34. Kg3 {[%clk 00:01:54]} {[%emt 00:00:28]} Qe1+ {[%clk 00:00:57]}
{[%emt 00:00:50]} 35. Kg4 {[%clk 00:01:14]} {[%emt 00:00:49]} Be7 {[%clk
00:00:31]} {[%emt 00:00:37]} 36. g3 {[%clk 00:01:12]} {[%emt 00:00:12]} Qd1+
{[%clk 00:00:23]} {[%emt 00:00:18]} 37. Be2 {[%clk 00:01:17]} {[%emt 00:00:05]}
Qd7+ {[%clk 00:00:32]} {[%emt 00:00:02]} 38. Kf3 {[%clk 00:01:20]} {[%emt
00:00:06]} Bd6 {[%clk 00:00:23]} {[%emt 00:00:19]} 39. Bxd6 {[%clk 00:00:53]}
{[%emt 00:00:36]} Qxd6 {[%clk 00:00:33]} {[%emt 00:00:01]} 40. Rxa6 {[%clk
00:00:48]} {[%emt 00:00:15]} Rxa6 {[%clk 00:00:42]} 41. Qxa6 {[%clk 00:00:57]}
{[%emt 00:00:01]} Qf6+ {[%clk 00:00:48]} {[%emt 00:00:05]} 42. Kg2 {[%clk
00:00:53]} {[%emt 00:00:14]} Qxb2 {[%clk 00:00:49]} {[%emt 00:00:09]} 43. Kh3
{[%clk 00:00:23]} {[%emt 00:00:40]} g6 {[%clk 00:00:38]} {[%emt 00:00:21]} 44.
Bc4 {[%clk 00:00:12]} {[%emt 00:00:21]} Rd2 {[%clk 00:00:32]} {[%emt 00:00:16]}
45. Qc8+ {[%clk 00:00:21]} {[%emt 00:00:01]} Kg7 {[%clk 00:00:41]} 46. Qc7
{[%clk 00:00:23]} {[%emt 00:00:08]} Rxh2+ {[%clk 00:00:49]} {[%emt 00:00:03]}
47. Kg4 {[%clk 00:00:32]} h5+ {[%clk 00:00:51]} {[%emt 00:00:08]} 48. Kf4
{[%clk 00:00:21]} {[%emt 00:00:21]} Rf2+ {[%clk 00:01:00]} {[%emt 00:00:01]}
0-1

[Event "FIDE U16 Olympiad_boards_1-80"]
[Site "Eindhoven, Netherlands"]
[Date "2023.08.14"]
[Round "3.80"]
[White "O'carroll, Om"]
[Black "Westerhof, Fleur"]
[Result "0-1"]
[TimeControl "2700+10"]
[WhiteElo "1284"]
[BlackElo "1793"]

1. e4 {[%clk 00:45:19]} e5 {[%clk 00:45:17]} {[%emt 00:00:03]} 2. Nf3 {[%clk
00:45:27]} {[%emt 00:00:02]} Nc6 {[%clk 00:45:26]} {[%emt 00:00:01]} 3. Bc4
{[%clk 00:45:35]} {[%emt 00:00:03]} Bc5 {[%clk 00:45:32]} {[%emt 00:00:03]} 4.
c3 {[%clk 00:45:43]} {[%emt 00:00:03]} Nf6 {[%clk 00:45:38]} {[%emt 00:00:04]}
5. d4 {[%clk 00:45:50]} {[%emt 00:00:02]} exd4 {[%clk 00:45:44]} {[%emt
00:00:05]} 6. b4 {[%clk 00:45:56]} {[%emt 00:00:04]} Be7 {[%clk 00:39:02]}
{[%emt 00:06:51]} 7. e5 {[%clk 00:45:52]} {[%emt 00:00:14]} Ng4 {[%clk
00:38:13]} {[%emt 00:00:59]} 8. cxd4 {[%clk 00:42:47]} {[%emt 00:03:15]} Bxb4+
{[%clk 00:37:51]} {[%emt 00:00:32]} 9. Kf1 {[%clk 00:42:24]} {[%emt 00:00:34]}
d6 {[%clk 00:33:53]} {[%emt 00:04:07]} 10. h3 {[%clk 00:38:39]} {[%emt
00:03:55]} Nh6 {[%clk 00:33:32]} {[%emt 00:00:31]} 11. Bg5 {[%clk 00:36:08]}
{[%emt 00:02:41]} Qd7 {[%clk 00:32:31]} {[%emt 00:01:11]} 12. Bb5 {[%clk
00:33:27]} {[%emt 00:02:51]} a6 {[%clk 00:31:11]} {[%emt 00:01:30]} 13. Bxh6
{[%clk 00:27:58]} {[%emt 00:05:39]} gxh6 {[%clk 00:30:03]} {[%emt 00:01:18]} 14.
Bd3 {[%clk 00:25:37]} {[%emt 00:02:30]} dxe5 {[%clk 00:28:50]} {[%emt
00:01:24]} 15. dxe5 {[%clk 00:23:50]} {[%emt 00:01:57]} Qd5 {[%clk 00:26:15]}
{[%emt 00:02:45]} 16. a3 {[%clk 00:16:20]} {[%emt 00:07:40]} Ba5 {[%clk
00:25:46]} {[%emt 00:00:39]} 17. Qe2 {[%clk 00:14:22]} {[%emt 00:02:08]} Be6
{[%clk 00:24:39]} {[%emt 00:01:17]} 18. Be4 {[%clk 00:11:22]} {[%emt 00:03:10]}
Qc5 {[%clk 00:21:37]} {[%emt 00:03:12]} 19. Nbd2 {[%clk 00:09:45]} {[%emt
00:01:48]} O-O-O {[%clk 00:19:59]} {[%emt 00:01:47]} 20. Rd1 {[%clk 00:06:32]}
{[%emt 00:03:23]} Bxd2 {[%clk 00:15:19]} {[%emt 00:04:50]} 21. Nxd2 {[%clk
00:03:19]} {[%emt 00:03:23]} Nxe5 {[%clk 00:13:32]} {[%emt 00:01:57]} 22. Rb1
{[%clk 00:02:45]} {[%emt 00:00:45]} Nc6 {[%clk 00:13:08]} {[%emt 00:00:33]} 23.
Kg1 {[%clk 00:01:47]} {[%emt 00:01:07]} Rhe8 {[%clk 00:09:41]} {[%emt
00:03:37]} 24. Nf3 {[%clk 00:00:47]} {[%emt 00:01:11]} f5 {[%clk 00:08:11]}
{[%emt 00:01:39]} 25. Bxc6 {[%clk 00:00:53]} {[%emt 00:00:04]} Qxc6 {[%clk
00:07:47]} {[%emt 00:00:34]} 26. Qb2 {[%clk 00:01:01]} {[%emt 00:00:03]} Rg8
{[%clk 00:07:24]} {[%emt 00:00:33]} 27. Kh2 {[%clk 00:01:00]} {[%emt 00:00:12]}
Bd5 {[%clk 00:04:18]} {[%emt 00:03:16]} 28. Rhg1 {[%clk 00:01:08]} {[%emt
00:00:01]} Bxf3 {[%clk 00:03:52]} {[%emt 00:00:36]} 29. gxf3 {[%clk 00:01:17]}
{[%emt 00:00:01]} Qxf3 {[%clk 00:03:31]} {[%emt 00:00:31]} 30. Rg3 {[%clk
00:01:18]} {[%emt 00:00:09]} Rxg3 {[%clk 00:03:30]} {[%emt 00:00:12]} 31. fxg3
{[%clk 00:01:26]} {[%emt 00:00:02]} f4 {[%clk 00:03:12]} {[%emt 00:00:27]} 32.
gxf4 {[%clk 00:00:27]} {[%emt 00:01:10]} Qxf4+ {[%clk 00:03:18]} {[%emt
00:00:04]} 33. Kh1 {[%clk 00:00:34]} {[%emt 00:00:03]} Qf3+ {[%clk 00:02:26]}
{[%emt 00:01:02]} 34. Kh2 {[%clk 00:00:42]} {[%emt 00:00:02]} Re8 {[%clk
00:02:21]} {[%emt 00:00:14]} 35. Kg1 {[%clk 00:00:30]} {[%emt 00:00:22]} Rg8+
{[%clk 00:02:21]} {[%emt 00:00:10]} 36. Kh2 {[%clk 00:00:36]} {[%emt 00:00:04]}
Qg3+ {[%clk 00:02:28]} {[%emt 00:00:02]} 37. Kh1 {[%clk 00:00:38]} {[%emt
00:00:08]} Qxh3+ {[%clk 00:02:37]} {[%emt 00:00:02]} 38. Qh2 {[%clk 00:00:33]}
{[%emt 00:00:15]} Qf3+ {[%clk 00:02:45]} {[%emt 00:00:02]} 0-1